[Event "Weekendtournooi Groningen & PK NOSBO"]
[Site "Groningen, Netherlands"]
[Date "2023.05.21"]
[Round "7.11"]
[White "Van Foreest, Nanne"]
[Black "Aden, Dagmar"]
[Result "1/2-1/2"]
[TimeControl "90min + 30sec/move"]
[WhiteElo "1914"]
[BlackElo "1739"]

1. e4 {[%clk 01:30:57]} c5 {[%clk 01:30:51]} {[%emt 00:00:04]} 2. c3 {[%clk
01:31:14]} {[%emt 00:00:20]} Nf6 {[%clk 01:30:48]} {[%emt 00:00:35]} 3. e5
{[%clk 01:31:22]} {[%emt 00:00:09]} Nd5 {[%clk 01:31:07]} {[%emt 00:00:17]} 4.
d4 {[%clk 01:31:46]} {[%emt 00:00:14]} cxd4 {[%clk 01:31:25]} 5. Nf3 {[%clk
01:32:11]} {[%emt 00:00:09]} e6 {[%clk 01:30:52]} {[%emt 00:01:08]} 6. cxd4
{[%clk 01:31:12]} {[%emt 00:01:18]} Nc6 {[%clk 01:30:26]} {[%emt 00:00:56]} 7.
Bc4 {[%clk 01:31:35]} {[%emt 00:00:48]} Nb6 {[%clk 01:29:37]} {[%emt 00:00:37]}
8. Bb3 {[%clk 01:31:42]} {[%emt 00:00:48]} d5 {[%clk 01:26:04]} {[%emt
00:04:09]} 9. O-O {[%clk 01:29:52]} {[%emt 00:01:48]} Be7 {[%clk 01:25:34]}
{[%emt 00:01:01]} 10. Nc3 {[%clk 01:26:47]} {[%emt 00:03:35]} Bd7 {[%clk
01:22:51]} {[%emt 00:03:46]} 11. Ne2 {[%clk 01:25:44]} {[%emt 00:01:08]} Rc8
{[%clk 01:20:11]} {[%emt 00:03:34]} 12. Ne1 {[%clk 01:23:18]} {[%emt 00:02:25]}
a5 {[%clk 01:12:16]} {[%emt 00:08:26]} 13. a3 {[%clk 01:22:47]} {[%emt
00:01:10]} a4 {[%clk 01:07:23]} {[%emt 00:05:17]} 14. Bc2 {[%clk 01:22:59]}
{[%emt 00:00:26]} Na5 {[%clk 01:06:07]} {[%emt 00:01:34]} 15. Qd3 {[%clk
01:17:14]} {[%emt 00:06:16]} Qc7 {[%clk 01:01:00]} {[%emt 00:05:55]} 16. Nf4
{[%clk 01:15:19]} {[%emt 00:02:44]} Qc4 {[%clk 00:51:49]} {[%emt 00:09:04]} 17.
Qg3 {[%clk 01:14:34]} {[%emt 00:01:14]} g6 {[%clk 00:50:05]} {[%emt 00:02:14]}
18. Bd3 {[%clk 01:12:04]} {[%emt 00:03:26]} Qc7 {[%clk 00:48:10]} {[%emt
00:02:15]} 19. Qh3 {[%clk 01:09:37]} {[%emt 00:03:25]} Nb3 {[%clk 00:41:54]}
{[%emt 00:06:05]} 20. Bxg6 {[%clk 01:06:48]} {[%emt 00:03:16]} fxg6 {[%clk
00:38:04]} {[%emt 00:04:23]} 21. Nxg6 {[%clk 01:07:11]} {[%emt 00:00:27]} Nxc1
{[%clk 00:34:46]} {[%emt 00:04:09]} 22. Nxh8 {[%clk 01:07:11]} {[%emt
00:00:04]} Bb5 {[%clk 00:31:50]} {[%emt 00:03:09]} 23. Qh5+ {[%clk 00:49:18]}
{[%emt 00:18:22]} Kd7 {[%clk 00:31:20]} {[%emt 00:01:00]} 24. Qxh7 {[%clk
00:49:41]} {[%emt 00:00:38]} Rxh8 {[%clk 00:25:44]} {[%emt 00:05:35]} 25. Qxh8
{[%clk 00:49:55]} {[%emt 00:00:21]} Bxf1 {[%clk 00:26:06]} {[%emt 00:00:09]} 26.
Kxf1 {[%clk 00:49:04]} {[%emt 00:01:33]} Qc4+ {[%clk 00:26:25]} 27. Kg1 {[%clk
00:49:33]} {[%emt 00:00:35]} Ne2+ {[%clk 00:26:07]} {[%emt 00:00:09]} 28. Kh1
{[%clk 00:48:57]} {[%emt 00:01:05]} Nxd4 {[%clk 00:22:44]} {[%emt 00:03:52]} 29.
h3 {[%clk 00:48:31]} {[%emt 00:00:58]} Qf1+ {[%clk 00:22:11]} {[%emt 00:01:03]}
30. Kh2 {[%clk 00:49:00]} Qxf2 {[%clk 00:19:36]} {[%emt 00:03:06]} 31. Qg7
{[%clk 00:46:27]} {[%emt 00:03:02]} Nf5 {[%clk 00:17:34]} {[%emt 00:02:33]} 32.
Qg4 {[%clk 00:45:47]} {[%emt 00:01:30]} Ne3 {[%clk 00:17:13]} {[%emt 00:00:30]}
33. Qf3 {[%clk 00:44:40]} {[%emt 00:01:37]} Nf1+ {[%clk 00:17:00]} {[%emt
00:00:43]} 34. Kh1 {[%clk 00:44:48]} {[%emt 00:00:44]} Ng3+ {[%clk 00:17:14]}
{[%emt 00:00:05]} 35. Kh2 {[%clk 00:45:06]} {[%emt 00:00:05]} Nf1+ {[%emt
00:00:21]} 1/2-1/2